bitfinex-derivatives/quotes_SOLF0:USTF0_20260126
["timestamp","ask_amount","ask_price","bid_price","bid_amount"]
[1769463741880,33.68935262,124.72,124.63,112.4499]
[1769463742082,33.68935262,124.72,124.63,7.2285]
[1769463742278,33.68935262,124.72,124.63,119.6777]
[1769463742485,0.05818637,124.69,124.63,119.6777]
[1769463743487,0.05818637,124.69,124.63,7.2285]
[1769463744380,0.05818637,124.69,124.63,119.6781]
[1769463744985,33.74753899,124.69,124.61,119.6892]
[1769463745180,33.74753899,124.69,124.59,432.8402]
[1769463745181,33.74753899,124.69,124.59,112.4802]
[1769463745375,112.3448,124.75,124.55,112.5155]
[1769463745376,33.68935262,124.77,124.68,112.4]
[1769463745575,33.68935262,124.77,124.67,112.4101]
[1769463745780,33.68935262,124.77,124.68,112.4041]
[1769463746083,33.68935262,124.77,124.66,112.4231]
[1769463746882,33.68935262,124.77,124.7,0.05270058]
[1769463747184,33.71844581,124.75,124.65,112.4307]
[1769463747388,33.77458481,124.73,124.65,112.4307]
[1769463747986,33.71844581,124.73,124.65,112.4307]
[1769463748288,33.71844581,124.73,124.66,7.2268]
[1769463748582,0.05289166,124.7,124.66,7.2268]
[1769463748783,33.71844581,124.73,124.66,7.2268]
[1769463749187,33.71844581,124.73,124.67,112.4141]
[1769463749589,39.74489725,124.76,124.67,112.4141]
[1769463750187,39.74489725,124.76,124.65,112.4307]
[1769463750188,21.42914581,124.76,124.63,6.02645144]
[1769463750387,21.42914581,124.76,124.58,337.4837]
[1769463750388,6.02645144,124.86,124.73,112.3514]
[1769463750594,6.02645144,124.86,124.74,112.347]
[1769463750985,6.02645144,124.86,124.75,112.3388]
[1769463751292,6.02645144,124.86,124.78,0.06020537]
[1769463751792,6.02645144,124.83,124.72,112.3626]
[1769463751992,6.08538071,124.83,124.72,112.3626]
[1769463752291,16.82914312,124.78,124.69,112.3955]
[1769463752491,16.82914312,124.78,124.68,112.3987]
[1769463752894,16.82914312,124.78,124.67,112.4115]
[1769463753090,0.06007293,124.74,124.67,112.4115]
[1769463753794,16.88921605,124.74,124.64,112.4409]
[1769463754294,16.82914312,124.73,124.64,112.4407]
[1769463754688,0.05188538,124.7,124.61,112.4594]
[1769463754889,16.8810285,124.7,124.58,432.6673]
[1769463755193,22.85559456,124.68,124.59,7.2309]
[1769463755494,22.85559456,124.68,124.58,112.4873]
[1769463755682,0.05116747,124.65,124.58,112.4873]
[1769463755884,0.05116747,124.65,124.62,0.06010192]
[1769463757091,16.79909216,124.64,124.53,314.02869984]
[1769463757396,16.79909216,124.61,124.53,306.80410633]
[1769463757895,16.79909216,124.61,124.51,7.2353]
[1769463758392,16.79909216,124.61,124.51,119.7937]
[1769463758596,16.79909216,124.63,124.52,119.7815]
[1769463759096,320.2,124.64,124.52,119.7815]
[1769463759295,112.4267,124.66,124.52,119.7815]
[1769463759296,54.01147648,124.76,124.61,6.02645144]
[1769463759497,54.01147648,124.76,124.66,112.4193]
[1769463759799,54.01147648,124.76,124.67,119.6381]
[1769463760100,54.01147648,124.76,124.68,320.24]
[1769463760294,54.01147648,124.76,124.65,126.88319351]
[1769463760487,118.37205144,124.75,124.62,119.68379351]
[1769463760693,118.37205144,124.75,124.63,320.26]
[1769463760894,7.2226,124.74,124.63,439.9353]
[1769463761193,54.01147648,124.75,124.64,112.4368]
[1769463761595,54.01147648,124.74,124.63,320.26]
[1769463761792,54.01147648,124.71,124.6,119.70189351]
[1769463761996,54.01147648,124.71,124.6,112.4773]
[1769463762899,166.39007648,124.71,124.6,7.2301]
[1769463763101,166.39007648,124.71,124.59,310.52047156]
[1769463763102,54.01147648,124.69,124.59,310.52047156]
[1769463763301,54.01147648,124.68,124.59,310.52047156]
[1769463764000,54.01147648,124.67,124.56,439.9815]
[1769463764801,54.01147648,124.67,124.57,7.232]
[1769463765403,54.01147648,124.67,124.57,119.7361]
[1769463766299,61.23657648,124.7,124.59,112.486]
[1769463767699,61.23727648,124.69,124.59,7.2309]
[1769463768399,61.23727648,124.69,124.6,7.2304]
[1769463768801,61.23727648,124.69,124.57,119.8097018]
[1769463768802,7.2264,124.68,124.57,119.8097018]
[1769463769003,61.23787648,124.68,124.57,112.5041]
[1769463769200,61.23787648,124.68,124.57,119.8097018]
[1769463769999,61.23787648,124.68,124.58,7.2315]
[1769463770198,54.01147648,124.67,124.58,7.2315]
[1769463770601,54.01147648,124.67,124.56,7.2326]
[1769463770802,61.23877648,124.66,124.55,432.7995]
[1769463771906,7.228,124.65,124.57,7.2322]
[1769463772205,61.23947648,124.65,124.57,7.2322]
[1769463772808,54.01147648,124.63,124.55,7.2331]
[1769463773011,54.01147648,124.63,124.52,119.8490018]
[1769463773210,54.01147648,124.63,124.52,112.5434]
[1769463773414,54.01147648,124.63,124.53,112.5403]
[1769463774222,57.62427648,124.74,124.6,112.4745]
[1769463774515,57.62427648,124.74,124.63,112.4494]
[1769463774712,57.62427648,124.74,124.62,112.4577]
[1769463774913,57.62427648,124.73,124.62,7.2292]
[1769463776117,57.62427648,124.71,124.61,7.2299]
[1769463777117,57.62427648,124.7,124.59,7.2311]
[1769463777315,57.62427648,124.69,124.59,7.2311]
[1769463777818,57.62427648,124.68,124.58,313.12290351]
[1769463778513,57.62427648,124.67,124.58,313.12290351]
[1769463779412,64.85137648,124.67,124.58,313.12290351]
[1769463779817,57.62427648,124.67,124.58,313.12290351]
[1769463780013,57.62427648,124.67,124.58,432.84850351]
[1769463780318,57.62427648,124.67,124.58,425.61710351]
[1769463781115,57.62427648,124.67,124.59,7.2309]
[1769463783219,7.2256,124.69,124.6,7.2305]
[1769463784117,112.3945,124.7,124.58,640.67450351]
[1769463784417,57.62427648,124.66,124.58,313.12290351]
[1769463785118,57.62427648,124.64,124.58,313.12290351]
[1769463786714,0.05680972,124.62,124.6,0.06062853]
[1769463788011,0.05680972,124.62,124.58,313.12290351]
[1769463788822,7.28640972,124.62,124.58,313.12290351]
[1769463790523,7.2303,124.61,124.54,7.2337]
[1769463790712,57.62427648,124.61,124.52,7.235]
[1769463790916,57.62427648,124.6,124.49,23.26716983]
[1769463791123,7.2319,124.58,124.5,7.236]
[1769463791622,0.06089311,124.56,124.5,7.236]
[1769463792022,0.06089311,124.56,124.51,7.2358]
[1769463792921,57.62427648,124.59,124.52,7.2351]
[1769463793511,64.85587648,124.59,124.49,135.84066983]
[1769463793916,57.62427648,124.59,124.49,23.26716983]
[1769463794324,0.05056669,124.55,124.49,23.26716983]
[1769463794523,0.05056669,124.55,124.5,7.2359]
[1769463794923,0.05056669,124.55,124.51,7.2358]
[1769463795521,112.4063,124.68,124.54,118.55924814]
[1769463795828,61.24004132,124.67,124.55,432.9177]
[1769463796121,7.2278,124.65,124.57,7.232]
[1769463797128,7.2278,124.65,124.58,7.2318]
[1769463797421,67.27408946,124.66,124.58,7.2318]
[1769463797925,74.50138946,124.66,124.58,7.2318]
[1769463798320,61.24004132,124.65,124.56,7.2324]
[1769463799523,68.46834132,124.65,124.57,7.2323]
[1769463800329,68.46844132,124.64,124.57,7.2323]
[1769463801430,7.229,124.63,124.56,7.2329]
[1769463801627,68.46904132,124.63,124.59,0.05440384]
[1769463801826,68.46904132,124.63,124.56,7.2329]
[1769463802028,0.05060457,124.61,124.56,7.2329]
[1769463803122,112.4063,124.68,124.53,112.5367]
[1769463803123,61.24004132,124.75,124.57,0.05899382]
[1769463803326,61.24004132,124.75,124.64,112.439]
[1769463803524,61.24004132,124.75,124.65,112.4319]
[1769463803727,61.24004132,124.75,124.68,7.2259]
[1769463804430,61.24004132,124.75,124.64,112.439]
[1769463804627,61.24004132,124.75,124.63,118.48154814]
[1769463805428,7.2232,124.73,124.66,7.227]
[1769463805626,61.24004132,124.75,124.66,7.227]
[1769463806121,68.46264132,124.74,124.67,7.2265]
[1769463806631,68.46264132,124.74,124.64,112.4387]
[1769463808028,68.46264132,124.74,124.66,7.227]
[1769463809736,61.24004132,124.72,124.64,7.2283]
[1769463810037,61.24004132,124.72,124.59,112.4843]
[1769463810224,61.24004132,124.69,124.58,112.4867]
[1769463810428,61.24004132,124.69,124.57,112.497]
[1769463810828,7.2273,124.66,124.55,112.518]
[1769463811033,7.2273,124.66,124.56,112.5127]
[1769463811233,61.24004132,124.67,124.59,112.4854]
[1769463811426,61.24004132,124.67,124.61,7.2299]
[1769463815438,61.24004132,124.67,124.59,7.2307]
[1769463815839,61.24004132,124.67,124.58,112.4949]
[1769463817043,61.24004132,124.67,124.6,7.2306]
[1769463818839,68.46674132,124.67,124.6,7.2306]
[1769463819044,68.46674132,124.67,124.57,112.501]
[1769463819045,61.24004132,124.67,124.57,112.501]
[1769463820945,68.46694132,124.67,124.58,7.2313]
[1769463821140,68.46694132,124.67,124.57,112.501]
[1769463821843,7.2272,124.66,124.59,7.2312]
[1769463822051,7.2272,124.66,124.55,112.518]
[1769463822243,7.2272,124.66,124.56,112.5134]
[1769463822437,68.46724132,124.66,124.56,112.5134]
[1769463822840,7.2278,124.65,124.58,7.2317]
[1769463823546,68.46844132,124.64,124.57,7.2323]
[1769463823845,61.24004132,124.64,124.53,432.8523]
[1769463824434,61.24004132,124.62,124.55,7.233]
[1769463824637,61.24004132,124.62,124.53,320.32]
[1769463824839,61.24004132,124.62,124.52,428.5871926]
[1769463825735,68.46954132,124.62,124.55,7.2331]
[1769463826744,68.47024132,124.61,124.53,7.2343]
[1769463826943,68.47024132,124.61,124.52,316.0465926]
[1769463827948,68.47024132,124.61,124.54,7.2341]
[1769463830752,68.47024132,124.61,124.55,7.2335]
[1769463831246,61.24004132,124.61,124.56,7.2327]
[1769463831446,67.27408946,124.64,124.54,112.5313]
[1769463832449,67.27408946,124.64,124.58,7.2316]
[1769463833248,67.27408946,124.64,124.6,0.05201709]
[1769463836256,0.05158808,124.63,124.6,0.05201709]
[1769463841356,0.05158808,124.63,124.55,112.5209]
[1769463841357,61.2916294,124.63,124.55,112.5209]
[1769463841553,61.2916294,124.63,124.54,112.5313]
[1769463841856,61.24004132,124.63,124.54,112.5313]
[1769463842051,61.24004132,124.63,124.52,316.0465926]
[1769463842247,6.03404814,124.64,124.52,316.0465926]
[1769463842248,61.21403277,124.6,124.52,316.0465926]
[1769463842649,0.05467535,124.59,124.52,316.0465926]
[1769463843050,0.05467535,124.59,124.54,7.2341]
[1769463844153,0.05467535,124.59,124.53,112.5378]
[1769463844458,0.05467535,124.59,124.54,112.5297]
[1769463844656,67.24808091,124.63,124.56,7.2326]
[1769463848663,74.47708091,124.63,124.56,7.2326]
[1769463849756,68.44303277,124.63,124.56,7.2326]
[1769463850064,61.21403277,124.63,124.55,112.5174]
[1769463850962,61.21403277,124.63,124.57,7.2319]
[1769463851162,68.44183277,124.65,124.55,112.5174]
[1769463852864,68.44183277,124.65,124.58,7.2315]
[1769463860866,61.21403277,124.65,124.59,7.2306]
[1769463861563,61.21403277,124.65,124.6,7.2306]
[1769463861768,61.21403277,124.65,124.58,112.4954]
[1769463862364,61.21403277,124.65,124.6,7.2306]
[1769463863568,61.21403277,124.67,124.61,7.2298]
[1769463868170,61.21403277,124.67,124.63,0.05113618]
[1769463868571,68.44063277,124.67,124.63,0.05113618]
[1769463868772,68.44063277,124.67,124.6,7.2306]
[1769463868968,0.05306294,124.66,124.6,7.2306]
[1769463869474,61.26709571,124.66,124.6,7.2306]
[1769463869975,74.52383256,124.66,124.59,7.2312]
[1769463870471,7.2278,124.65,124.57,7.2319]
[1769463870676,61.21403277,124.64,124.57,7.2319]
[1769463870877,61.27277311,124.64,124.57,7.2319]
[1769463871976,68.50117311,124.64,124.57,7.2319]
[1769463873981,61.21403277,124.62,124.54,112.5311]
[1769463875076,61.21403277,124.62,124.56,7.2329]
[1769463875077,0.06117954,124.59,124.56,7.2329]
[1769463878377,2.42535106,124.59,124.54,7.2338]
[1769463878577,2.36417152,124.57,124.52,316.0465926]
[1769463879588,0.05409295,124.56,124.52,316.0465926]
[1769463879888,0.05409295,124.56,124.52,323.2818926]
[1769463880599,2.36417152,124.55,124.52,323.2818926]
[1769463880787,2.36417152,124.55,124.52,316.0465926]
[1769463885392,2.36417152,124.53,124.49,23.26716983]
[1769463886190,63.57820429,124.55,124.49,23.26716983]
[1769463886500,0.05438366,124.52,124.49,23.26716983]
[1769463886893,61.21403277,124.57,124.5,7.2364]
[1769463887092,2.36417152,124.56,124.5,7.2364]
[1769463888795,2.36417152,124.56,124.52,0.05392686]
[1769463894003,272.64,124.62,124.52,0.05392686]
[1769463894207,2.36417152,124.59,124.52,0.05392686]
[1769463894402,2.36417152,124.59,124.53,7.2342]
[1769463896205,57.49855429,124.59,124.53,7.2342]
[1769463899308,57.49855429,124.59,124.55,0.05083531]
[1769463899708,55.13438277,124.59,124.55,0.05083531]
[1769463899909,2.36417152,124.58,124.55,0.05083531]
[1769463900106,2.36417152,124.58,124.53,7.2342]
[1769463900306,2.36417152,124.58,124.54,7.234]
[1769463900502,57.55273657,124.58,124.5,112.5628]
[1769463900810,2.36417152,124.54,124.49,23.26716983]
[1769463901007,57.49855429,124.54,124.49,23.26716983]
[1769463901206,2.36417152,124.52,124.44,112.6132]
[1769463901408,2.36417152,124.51,124.44,112.6132]
[1769463901610,2.36417152,124.51,124.47,7.2381]
[1769463901804,55.13438277,124.52,124.46,112.6016]
[1769463902012,2.36417152,124.53,124.46,112.6016]
[1769463902307,2.36417152,124.53,124.49,7.237]
[1769463902512,2.36417152,124.53,124.46,114.96577152]
[1769463902513,2.36417152,124.53,124.47,112.5924]
[1769463902710,2.36417152,124.55,124.51,7.2357]
[1769463903013,2.36417152,124.57,124.49,112.5754]
[1769463903700,2.36417152,124.57,124.52,0.05094947]
[1769463903905,2.36417152,124.57,124.53,7.2344]
[1769463905310,48.99470306,124.58,124.54,7.2339]
[1769463905511,51.35887458,124.58,124.54,7.2339]
[1769463906614,51.35887458,124.58,124.55,0.06138311]
[1769463907408,51.35887458,124.58,124.51,112.5535]
[1769463907609,51.41516894,124.58,124.51,112.5535]
[1769463908009,51.41516894,124.58,124.53,7.2341]
[1769463908210,49.05099742,124.58,124.51,112.5535]
[1769463908417,49.05099742,124.58,124.52,112.5492]
[1769463908818,49.05099742,124.58,124.54,7.2337]
[1769463910914,0.05629436,124.58,124.52,112.5492]
[1769463911113,0.05629436,124.58,124.52,114.91337152]
[1769463912021,0.05629436,124.58,124.55,7.2334]
[1769463912222,0.05629436,124.58,124.53,112.5342]
[1769463912425,0.05629436,124.58,124.55,7.2331]
[1769463913918,44.17561894,124.58,124.5,122.10453574]
[1769463914127,2.36417152,124.56,124.5,112.5621]
[1769463914824,0.05620156,124.54,124.5,112.5621]
[1769463915024,44.11932458,124.57,124.5,112.5621]
[1769463915327,44.11932458,124.57,124.52,0.05338143]
[1769463915521,44.12075654,124.57,124.52,0.05338143]
[1769463915920,2.36560348,124.57,124.52,0.05338143]
[1769463916320,2.36560348,124.59,124.52,0.05338143]
[1769463916823,2.36560348,124.59,124.54,7.2341]
[1769463917021,2.36560348,124.59,124.51,114.92160348]
[1769463917622,2.36560348,124.59,124.54,0.05309235]
[1769463917824,38.08725654,124.59,124.54,0.05309235]
[1769463918730,38.08725654,124.59,124.54,7.28699235]
[1769463918921,38.08725654,124.59,124.54,0.05309235]
[1769463919126,112.4048,124.69,124.54,112.57869235]
[1769463919127,38.08725654,124.62,124.54,112.57869235]
[1769463919427,38.08725654,124.62,124.57,7.2318]
[1769463919626,38.08725654,124.64,124.55,114.88570348]
[1769463919829,38.08725654,124.64,124.56,112.513]
[1769463920028,38.08725654,124.64,124.58,0.05304361]
[1769463920526,38.08725654,124.64,124.6,7.2306]
[1769463921428,38.08725654,124.64,124.61,0.05252304]
[1769463923234,38.08725654,124.62,124.58,7.2316]
[1769463924631,0.05809307,124.61,124.58,7.2316]
[1769463927031,2.36560348,124.63,124.59,7.2309]
[1769463927231,112.3706,124.72,124.59,118.22485237]
[1769463927427,2.36560348,124.66,124.6,7.2301]
[1769463927623,2.36560348,124.66,124.59,118.22485237]
[1769463927832,2.36560348,124.67,124.6,5.93846538]
[1769463928334,2.36560348,124.67,124.61,0.05116033]
[1769463928723,7.2246,124.71,124.62,5.93846538]
[1769463928926,2.36560348,124.69,124.62,5.93846538]
[1769463929325,27.72763283,124.69,124.62,5.93846538]
[1769463929526,25.36202935,124.69,124.65,7.2276]
[1769463929731,25.36202935,124.69,124.64,0.05618042]
[1769463931038,25.36202935,124.69,124.64,7.28438042]
[1769463931538,2.36560348,124.7,124.64,13.78483272]
[1769463931539,27.72763283,124.7,124.64,13.78483272]
[1769463932032,27.72763283,124.7,124.64,0.05618042]
[1769463933838,25.36202935,124.7,124.64,7.10000729]
[1769463934734,25.36202935,124.7,124.66,7.227]
[1769463935030,25.36202935,124.7,124.64,7.10000729]
[1769463935234,25.36202935,124.7,124.64,7.04382687]
[1769463935637,25.36202935,124.7,124.66,0.05374534]
[1769463935832,27.72763283,124.67,124.58,119.9389432]
[1769463936143,2.36560348,124.65,124.58,7.4498432]
[1769463936339,27.72763283,124.65,124.58,7.4498432]
[1769463937143,0.05839254,124.63,124.58,7.4498432]
[1769463938039,0.05839254,124.63,124.6,7.2306]
[1769463941443,0.05839254,124.63,124.58,14.6811432]
[1769463941741,0.05839254,124.63,124.59,10.82448993]
[1769463941947,25.36202935,124.66,124.6,8.45888645]
[1769463942445,25.36202935,124.66,124.61,7.2299]
[1769463943236,25.36202935,124.66,124.62,0.0605749]
[1769463945350,7.2261,124.68,124.62,0.0605749]
[1769463945351,2.36560348,124.68,124.62,7.2899749]
[1769463945549,27.72763283,124.68,124.62,7.2899749]
[1769463950351,27.66028004,124.66,124.62,0.0605749]
[1769463950551,27.66028004,124.66,124.59,9.79632792]
[1769463951149,27.60428025,124.66,124.59,9.79632792]
[1769463951953,0.05252587,124.64,124.61,7.23]
[1769463952546,25.29120264,124.64,124.58,17.31649429]
[1769463953953,25.29120264,124.64,124.6,7.2306]
[1769463954157,0.05252587,124.64,124.6,7.2306]
[1769463954851,0.05252587,124.64,124.61,7.2298]
[1769463958656,0.05252587,124.64,124.58,17.31649429]
[1769463959557,0.05252587,124.64,124.6,7.2306]
[1769463960561,0.05252587,124.64,124.59,7.2312]
[1769463960862,0.05252587,124.64,124.6,18.68584401]
[1769463961064,25.23867677,124.67,124.61,18.74438647]
[1769463961258,25.23867677,124.67,124.63,7.2289]
[1769463961458,2.36560348,124.68,124.63,7.2289]
[1769463962059,27.60428025,124.68,124.63,7.2289]
[1769463962459,27.60428025,124.68,124.64,0.05398575]
[1769463964762,25.23867677,124.72,124.64,19.30285392]
[1769463965062,27.60428025,124.71,124.64,19.30285392]
[1769463965263,27.60428025,124.71,124.64,19.24886817]
[1769463965462,27.60428025,124.71,124.65,26.47656817]
[1769463965662,27.60428025,124.71,124.66,0.05798892]
[1769463966365,25.23867677,124.71,124.66,0.05798892]
[1769463970957,25.23867677,124.71,124.66,7.28458892]
[1769463971567,25.23867677,124.71,124.67,7.2264]
[1769463971865,27.60428025,124.73,124.67,7.2264]
[1769463972864,27.60428025,124.73,124.69,0.05488011]
[1769463973068,27.60428025,124.73,124.65,21.61447165]
[1769463973262,0.05464522,124.71,124.65,21.61447165]
[1769463973956,0.05464522,124.71,124.66,7.2266]
[1769463974962,25.23867677,124.69,124.66,7.2266]
[1769463978766,25.23867677,124.69,124.64,7.2278]
[1769463979671,29.34993953,124.68,124.61,23.68424357]
[1769463980369,29.34993953,124.68,124.58,23.79784853]
[1769463980370,29.29685855,124.66,124.58,23.79784853]
[1769463980572,31.65719696,124.65,124.58,23.79784853]
[1769463980757,29.29685855,124.64,124.56,31.03054853]
[1769463980959,31.65719696,124.63,124.56,31.03054853]
[1769463981464,0.05225563,124.61,124.56,31.03054853]
[1769463981772,0.05225563,124.61,124.56,23.79784853]
[1769463982560,0.05225563,124.61,124.57,21.66102841]
[1769463982765,31.65719696,124.65,124.58,24.13118688]
[1769463983374,31.65719696,124.65,124.58,31.36268688]
[1769463984869,31.65719696,124.65,124.6,0.05149195]
[1769463985273,29.29685855,124.67,124.6,22.03840913]
[1769463985472,31.65719696,124.69,124.61,24.34725559]
[1769463986170,31.65719696,124.69,124.61,31.57705559]
[1769463986370,31.65719696,124.69,124.64,0.05357109]
[1769463988666,29.29685855,124.68,124.59,7.2307]
[1769463988872,29.29685855,124.66,124.59,24.71512532]
[1769463989886,29.29685855,124.66,124.6,7.2306]
[1769463990077,0.06149451,124.64,124.6,7.2306]
[1769463990383,0.06149451,124.64,124.59,24.71512532]
[1769463991980,0.06149451,124.64,124.59,22.35478691]
[1769463992476,0.06149451,124.64,124.61,7.23]
[1769463992679,0.06149451,124.64,124.59,22.35478691]
[1769463993477,0.06149451,124.64,124.61,7.2299]
[1769463994379,0.06149451,124.64,124.6,2.36033841]
[1769463995080,0.06149451,124.64,124.6,9.59093841]
[1769463995884,0.06149451,124.64,124.59,29.58568691]
[1769463997184,0.06149451,124.64,124.6,7.2306]
[1769463997479,112.3419,124.76,124.61,30.17882397]
[1769463997684,2.36033841,124.69,124.61,30.17882397]
[1769463997889,2.36033841,124.69,124.63,7.2288]
[1769463998385,2.36033841,124.69,124.61,37.40862397]
[1769463998386,9.58583841,124.69,124.61,37.40862397]
[1769463998883,9.58583841,124.69,124.65,0.05424302]
[1769463999380,29.29685855,124.68,124.65,0.05424302]
[1769463999580,29.29685855,124.68,124.61,37.40862397]
[1769463999783,29.35700242,124.68,124.61,37.40862397]
[1769464000079,29.35700242,124.68,124.62,7.2295]
[1769464000886,36.58330242,124.68,124.6,2.36033841]
[1769464001086,29.29685855,124.66,124.6,2.36033841]
[1769464001379,29.29685855,124.66,124.59,32.53916238]
[1769464001784,0.05598072,124.64,124.59,32.53916238]
[1769464002884,0.05598072,124.64,124.6,7.2304]
[1769464004388,0.05598072,124.64,124.6,37.40922397]
[1769464008283,0.05598072,124.64,124.61,7.23]
[1769464008490,29.29685855,124.66,124.61,7.23]
[1769464008790,29.29685855,124.66,124.61,7.2882213]
[1769464009788,29.29685855,124.66,124.61,0.0582213]
[1769464011882,32.93225741,124.63,124.57,36.64231626]
[1769464012480,32.93225741,124.63,124.57,29.41041626]
[1769464013290,0.05696238,124.61,124.57,29.41041626]
[1769464013990,30.571919,124.6,124.53,29.41041626]
[1769464014584,30.571919,124.65,124.53,29.41041626]
[1769464014789,32.93225741,124.65,124.57,29.41041626]
[1769464015292,32.93225741,124.65,124.59,7.2307]
[1769464015686,32.93225741,124.65,124.57,29.41041626]
[1769464016296,32.93225741,124.65,124.6,0.05634501]
[1769464016993,32.93225741,124.65,124.58,29.41041626]
[1769464016994,18.191519,124.63,124.58,29.41041626]
[1769464017589,18.191519,124.63,124.58,36.64171626]
[1769464021094,0.05195516,124.64,124.59,36.64161626]
[1769464021287,0.05195516,124.64,124.59,29.41041626]
[1769464021693,32.93225741,124.65,124.59,29.41041626]
[1769464022202,0.05734129,124.63,124.59,29.41041626]
[1769464022795,0.05734129,124.63,124.58,7.2313]
[1769464022996,32.93225741,124.61,124.55,29.41041626]
[1769464023900,0.05173233,124.59,124.55,29.41041626]
[1769464024702,32.93225741,124.57,124.49,29.41041626]
[1769464024904,2.36033841,124.55,124.49,29.41041626]
[1769464025706,0.05565059,124.53,124.49,29.41041626]
[1769464027004,0.05565059,124.53,124.49,36.64741626]
[1769464029905,0.05565059,124.53,124.47,36.64831626]
[1769464030207,2.415989,124.53,124.47,29.41041626]
[1769464030401,2.36033841,124.53,124.47,29.41041626]
[1769464030906,0.05229604,124.51,124.48,36.64781626]
[1769464031308,32.93225741,124.55,124.48,36.64781626]
[1769464031605,32.93225741,124.55,124.48,36.7043997]
[1769464034608,2.36033841,124.51,124.48,0.05658344]
[1769464035008,32.93225741,124.51,124.44,29.41041626]
[1769464035210,32.98878494,124.51,124.44,29.41041626]
[1769464035414,2.36033841,124.49,124.44,29.41041626]
[1769464035822,32.98878494,124.51,124.44,29.41041626]
[1769464036024,32.93225741,124.51,124.44,29.41041626]
[1769464036527,0.05994327,124.49,124.45,29.41041626]
[1769464037229,2.36033841,124.53,124.46,29.41041626]
[1769464037618,2.36033841,124.53,124.46,29.46765834]
[1769464037822,2.36033841,124.53,124.48,7.2376]
[1769464039629,34.60600544,124.54,124.48,7.2376]
[1769464040331,34.60600544,124.54,124.5,0.05124111]
[1769464048139,41.84020544,124.54,124.5,0.05124111]
[1769464048331,32.23931459,124.53,124.47,40.03079621]
[1769464049234,32.23931459,124.53,124.48,7.2375]
[1769464049436,34.60600544,124.52,124.45,2.36669085]
[1769464049736,0.059888,124.51,124.44,32.54785093]
[1769464051036,0.059888,124.51,124.46,7.2385]
[1769464053937,0.059888,124.51,124.47,7.238]
[1769464054239,0.059888,124.51,124.46,32.54785093]
[1769464055032,34.60600544,124.55,124.48,39.78545093]
[1769464055237,34.60600544,124.55,124.48,32.54785093]
[1769464056344,34.60600544,124.55,124.5,0.05059185]
[1769464056842,34.60600544,124.55,124.5,7.28689185]
[1769464063042,34.60600544,124.55,124.5,0.05059185]
[1769464063244,32.23931459,124.54,124.48,34.91454178]
[1769464063450,34.60600544,124.56,124.48,34.91454178]
[1769464063950,34.60600544,124.56,124.5,32.54785093]
[1769464064648,0.06142124,124.54,124.5,32.54785093]
[1769464065152,0.06142124,124.54,124.51,7.2358]
[1769464069547,0.06142124,124.54,124.5,39.78425093]
[1769464070853,32.3595733,124.54,124.49,7.237]
[1769464071054,34.72626415,124.54,124.49,7.237]
[1769464071753,34.72626415,124.54,124.48,41.01883265]
[1769464073049,0.06142124,124.54,124.49,41.01813265]
[1769464073253,0.06142124,124.54,124.49,33.78133265]
[1769464073554,34.66484291,124.55,124.49,33.78133265]
[1769464074251,34.66484291,124.55,124.49,41.01833265]
[1769464074551,2.36669085,124.53,124.49,33.78133265]
[1769464074753,34.66484291,124.53,124.47,33.78133265]
[1769464075248,34.66484291,124.53,124.48,7.2376]
[1769464076353,34.66484291,124.53,124.47,41.01943265]
[1769464081557,34.66484291,124.53,124.48,7.2375]
[1769464082655,34.66484291,124.53,124.48,41.01883265]
[1769464082852,34.66484291,124.53,124.48,33.78133265]
[1769464085862,34.66484291,124.53,124.48,41.01883265]
[1769464087464,2.36669085,124.51,124.46,41.01973265]
[1769464091167,34.66484291,124.51,124.46,41.01973265]
[1769464095668,2.36669085,124.51,124.47,41.01953265]
[1769464096171,34.66484291,124.53,124.47,33.78133265]
[1769464096862,34.66484291,124.53,124.48,7.2375]
[1769464099064,37.48376433,124.55,124.49,41.49882929]
[1769464099969,37.24681047,124.54,124.47,33.9327174]
[1769464100270,37.24681047,124.54,124.48,33.9327174]
[1769464100571,34.88011962,124.54,124.48,36.29940825]
[1769464100771,2.36669085,124.56,124.48,36.29940825]
[1769464100975,37.24681047,124.56,124.5,41.1691174]
[1769464101174,37.24681047,124.56,124.5,33.9327174]
[1769464101476,2.36669085,124.56,124.52,7.2353]
[1769464101677,37.24556402,124.58,124.52,7.2353]
[1769464101975,0.05965503,124.55,124.52,7.2353]
[1769464102268,37.24556402,124.58,124.53,33.9327174]
[1769464102472,34.88011962,124.58,124.54,0.06085457]
[1769464103073,34.88011962,124.58,124.54,7.29485457]
[1769464104183,0.05261448,124.57,124.54,7.29485457]
[1769464107669,37.24556402,124.6,124.54,33.99357197]